bitfinex-derivatives/quotes_ETHF0:USTF0_20210705
["timestamp","ask_amount","ask_price","bid_price","bid_amount"]
[1625482399528,8.30524,2302.4,2302.1,1.76139365]
[1625482399630,8.30524,2302.4,2301.9,3.96774341]
[1625482400081,8.30524,2302.4,2302.0,0.12877028]
[1625482400482,2.20527,2302.1,2302.0,0.12877028]
[1625482400581,3.20527,2302.1,2302.0,0.12877028]
[1625482402943,3.20527,2302.1,2301.9,1.76247341]
[1625482403495,3.20527,2302.1,2301.7,2.20527]
[1625482403794,4.07537,2302.1,2301.7,2.20527]
[1625482404496,2.20527,2301.8,2301.7,2.20527]
[1625482404595,5.88227,2301.8,2301.7,2.20527]
[1625482405300,5.88227,2301.8,2301.4,1.76507868]
[1625482405548,5.88227,2301.8,2301.2,3.97048695]
[1625482406500,4.41054,2301.3,2301.2,3.97048695]
[1625482406600,8.87024,2301.3,2301.2,3.97048695]
[1625482406702,8.87024,2301.3,2301.2,2.20527]
[1625482416591,8.87024,2301.3,2300.9,1.76521148]
[1625482416791,8.87024,2301.3,2300.7,1.76550586]
[1625482417197,8.87024,2301.3,2300.6,2.52215122]
[1625482417198,8.87024,2301.3,2300.5,14.6026]
[1625482417946,8.87024,2301.3,2300.3,1.76757702]
[1625482418452,8.87024,2301.3,2300.2,1.76665944]
[1625482418549,2.20527,2300.7,2300.6,2.20527]
[1625482418651,4.44567,2300.7,2300.6,2.20527]
[1625482419151,4.44567,2300.7,2300.4,2.20527]
[1625482419554,5.44567,2300.7,2300.4,2.20527]
[1625482420557,2.20527,2300.5,2300.4,2.20527]
[1625482423261,4.73557,2300.5,2300.4,2.20527]
[1625482425879,2.5303,2300.5,2300.4,2.20527]
[1625482425985,1.79173335,2302.2,2300.4,2.20527]
[1625482426625,2.20527,2301.2,2301.1,2.20527]
[1625482426726,4.81117,2301.2,2301.1,2.20527]
[1625482427129,5.81117,2301.2,2300.4,2.20527]
[1625482428681,5.81117,2301.2,2300.8,2.20527]
[1625482428784,5.81117,2301.2,2300.4,2.20527]
[1625482430539,4.81117,2301.2,2300.4,2.20527]
[1625482430641,4.81117,2301.2,2301.1,4.41054]
[1625482433597,4.81117,2301.2,2301.1,4.09044]
[1625482433702,6.67687,2301.2,2300.4,1.26292092]
[1625482433999,5.81117,2301.2,2300.4,1.26292092]
[1625482434202,5.81117,2301.2,2300.1,1.26514061]
[1625482434305,51.822,2301.0,2300.1,1.26514061]
[1625482434401,1.0,2300.9,2300.1,1.26514061]
[1625482434704,4.41054,2300.2,2300.1,2.20527]
[1625482434806,7.63234,2300.2,2300.1,2.20527]
[1625482435605,7.63234,2300.2,2299.9,2.20527]
[1625482436507,7.63234,2300.2,2299.9,3.47102426]
[1625482437410,7.63234,2300.2,2299.9,2.20527]
[1625482437810,7.63234,2300.2,2299.9,3.47128358]
[1625482438261,7.63234,2300.2,2299.9,2.20527]
[1625482438719,7.63234,2300.2,2299.9,3.47185721]
[1625482439674,7.63234,2300.2,2299.9,2.20527]
[1625482441080,7.63234,2300.2,2300.0,15.748299]
[1625482444641,7.63234,2300.2,2299.9,2.20527]
[1625482445092,7.63234,2300.2,2300.0,15.840445]
[1625482446046,3.2218,2300.2,2300.0,15.840445]
[1625482446144,45.2918,2301.0,2300.0,15.840445]
[1625482446344,44.2918,2301.0,2300.0,15.840445]
[1625482446544,1.0,2301.1,2300.0,15.840445]
[1625482446648,1.0,2301.1,2300.0,17.10806443]
[1625482446795,2.20527,2300.5,2300.3,2.20527]
[1625482447095,2.20527,2300.5,2300.4,15.828916]
[1625482447195,2.20527,2300.5,2300.4,60.897416]
[1625482448348,2.20527,2300.5,2300.4,60.947416]
[1625482448448,7e-05,2300.5,2300.4,60.947416]
[1625482448549,1.0,2301.3,2300.4,60.947416]
[1625482448749,2.20527,2301.0,2300.9,2.20527]
[1625482450752,4.41054,2301.0,2300.9,2.20527]
[1625482450856,6.92164,2301.0,2300.9,2.20527]
[1625482451357,6.92164,2301.0,2300.4,45.1185]
[1625482451707,6.92164,2301.0,2300.4,45.0685]
[1625482452005,6.92164,2301.0,2300.5,15.82569]
[1625482452755,2.20527,2300.6,2300.3,5.68459677]
[1625482452957,2.20527,2300.6,2300.2,1.2778434]
[1625482454760,4.41054,2300.6,2300.5,2.20527]
[1625482457815,5.41054,2300.6,2300.5,2.20527]
[1625482459184,4.41054,2300.6,2300.5,2.20527]
[1625482462290,8.279162,2300.6,2300.5,2.20527]
[1625482467198,9.279162,2300.6,2300.5,2.20527]
[1625482478956,8.279162,2300.6,2300.5,2.20527]
[1625482479359,8.279162,2300.6,2300.5,45.46187]
[1625482480817,8.279162,2300.6,2300.5,46.73951487]
[1625482481317,8.279162,2300.6,2300.5,45.46187]
[1625482481618,8.279162,2300.6,2300.5,2.20527]
[1625482483023,9.279162,2300.6,2300.5,2.20527]
[1625482486690,9.279162,2300.6,2300.5,3.48307593]
[1625482487442,9.279162,2300.6,2300.5,4.35237593]
[1625482487541,9.279162,2300.6,2300.5,3.48307593]
[1625482488396,9.279162,2300.6,2300.5,2.20527]
[1625482489098,9.279162,2300.6,2300.5,3.99435385]
[1625482489351,2.306162,2300.6,2300.5,53.46035385]
[1625482489450,1.665422,2301.4,2300.5,53.46035385]
[1625482489552,1.665422,2301.4,2300.5,53.58919795]
[1625482489850,1.665422,2301.4,2300.7,1.2774653]
[1625482490956,1.665422,2301.4,2300.9,1.27709816]
[1625482491056,1.665422,2301.4,2301.3,4.41054]
[1625482499169,1.665422,2301.4,2301.3,6.19866969]
[1625482499468,0.665422,2301.4,2301.3,6.19866969]
[1625482499669,0.665422,2301.4,2301.3,6.32748302]
[1625482499868,0.665422,2301.4,2301.3,47.23178302]
[1625482500121,0.665422,2301.4,2301.3,45.44365333]
[1625482500522,0.665422,2301.4,2301.3,47.99931208]
[1625482500620,0.665422,2301.4,2301.3,48.87811208]
[1625482501177,0.665422,2301.4,2301.3,46.32245333]
[1625482501427,0.665422,2301.4,2301.3,45.44365333]
[1625482502997,0.665422,2301.4,2301.3,61.34559133]
[1625482503099,0.112422,2301.4,2301.3,61.34559133]
[1625482503207,1.0,2302.1,2301.3,61.34559133]
[1625482503406,1.0,2302.1,2301.3,65.34716468]
[1625482503508,1.0,2302.1,2301.9,1.27662276]
[1625482503911,1.0,2302.1,2302.0,1.27611596]
[1625482504017,1.0,2302.1,2302.0,43.89311596]
[1625482504112,1.0,2302.1,2302.0,44.02189234]
[1625482504213,1.0,2302.1,2302.0,59.73666334]
[1625482504311,0.665422,2302.2,2302.0,60.24673934]
[1625482504760,0.665422,2302.2,2302.1,1.275869]
[1625482505113,0.665422,2302.2,2302.1,5.686409]
[1625482505662,2.2e-05,2302.2,2302.1,5.686409]
[1625482506163,2.2e-05,2302.2,2302.1,21.550818]
[1625482507017,2.2e-05,2302.2,2302.1,20.274949]
[1625482508525,2.2e-05,2302.2,2302.1,4.41054]
[1625482510176,2.512222,2302.2,2302.1,4.41054]
[1625482511877,2.512222,2302.2,2302.1,5.28824]
[1625482512329,2.512222,2302.2,2302.1,4.41054]
[1625482523926,2.512222,2302.2,2302.1,5.26994]
[1625482524881,2.512222,2302.2,2302.1,0.8594]
[1625482525381,2.512222,2302.2,2302.1,5.26994]
[1625482525982,2.512222,2302.2,2302.1,4.41054]
[1625482530658,2.512222,2302.2,2302.1,5.27964]
[1625482532008,2.512222,2302.2,2302.1,4.41054]
[1625482555171,2.2e-05,2302.2,2302.1,7.70484]
[1625482564756,2.2e-05,2302.2,2302.1,4.41054]
[1625482564855,2.233422,2302.2,2302.1,4.41054]
[1625482565258,2.233422,2302.2,2302.1,6.97664]
[1625482565358,2.2e-05,2302.2,2302.1,6.97664]
[1625482570213,2.2e-05,2302.2,2302.1,2.5661]
[1625482570312,2.2e-05,2302.2,2301.8,1.27240724]
[1625482571762,2.2e-05,2302.2,2302.1,4.41054]
[1625482586665,2.2e-05,2302.2,2302.1,5.68459794]
[1625482589220,2.2e-05,2302.2,2302.1,4.41054]
[1625482589620,2.2e-05,2302.2,2302.0,1.27450659]
[1625482589730,2.707122,2302.2,2302.0,1.27450659]
[1625482589827,2.20527,2302.1,2302.0,1.27450659]
[1625482589923,3.07457,2302.1,2302.0,1.27450659]
[1625482590326,3.07457,2302.1,2302.0,1.15450659]
[1625482590426,3.07457,2302.1,2301.9,1.27563671]
[1625482590735,3.07457,2302.1,2301.9,3.671e-05]
[1625482590829,3.07457,2302.1,2301.7,2.20527]
[1625482591880,2.20527,2301.8,2301.7,2.20527]
[1625482595888,4.39857,2301.8,2301.7,2.20527]
[1625482600799,4.39857,2301.8,2301.7,7e-05]
[1625482602202,2.20527,2301.8,2301.7,7e-05]
[1625482603304,5.11707,2301.8,2301.7,7e-05]
[1625482604161,2.9118,2301.8,2301.4,1.78643871]
[1625482604657,2.20527,2301.6,2301.5,3.99122461]
[1625482604963,2.2e-05,2302.2,2301.5,3.99122461]
[1625482606619,2.20527,2301.9,2301.8,2.20527]
[1625482607722,2.20527,2301.9,2301.5,3.99122461]
[1625482608624,2.20527,2301.6,2301.5,3.99122461]
[1625482608975,2.20527,2301.6,2301.5,2.20527]
[1625482610179,2.20527,2301.6,2301.5,3.9915]
[1625482610933,2.20527,2301.6,2301.5,2.20527]
[1625482612441,2.20527,2301.9,2301.5,2.20527]
[1625482612545,2.2e-05,2302.2,2301.5,5.70517]
[1625482612645,2.2e-05,2302.2,2302.1,4.41054]
[1625482612744,2.2e-05,2302.2,2302.1,7.83374]
[1625482614495,2.2e-05,2302.2,2302.1,3.4232]
[1625482614694,2.205292,2302.2,2302.1,3.4232]
[1625482614794,2.205292,2302.2,2302.0,2.20527]
[1625482621058,2.2e-05,2302.2,2302.0,2.20527]
[1625482628149,39.465722,2302.2,2302.0,2.20527]
[1625482628248,42.895122,2302.2,2302.0,2.20527]
[1625482628797,2.20527,2302.1,2302.0,2.20527]
[1625482636813,5.60987,2302.1,2302.0,2.20527]
[1625482640889,5.60987,2302.1,2301.5,4.41054]
[1625482642898,2.20527,2301.6,2301.5,4.41054]
[1625482645505,3.4046,2302.1,2301.1,1.77157269]
[1625482645606,40.345222,2302.2,2301.1,1.77157269]
[1625482645708,39.465722,2302.2,2301.1,1.77157269]
[1625482646558,44.465722,2302.2,2301.1,1.77157269]
[1625482646657,42.8022,2301.2,2301.1,1.77157269]
[1625482646757,45.0735,2301.2,2301.1,1.77157269]
[1625482647060,49.48404,2301.2,2301.1,1.77157269]
[1625482647261,49.48404,2301.2,2301.0,4.73547708]
[1625482647262,49.48404,2301.2,2301.0,2.20527]
[1625482647816,49.48404,2301.2,2300.8,2.20527]
[1625482649015,2.20527,2300.9,2300.8,2.20527]
[1625482675429,2.20527,2300.9,2300.2,2.20527]
[1625482677382,2.20527,2300.9,2300.5,2.20527]
[1625482679395,2.20527,2300.6,2300.5,2.20527]
[1625482679600,5.19477,2300.6,2300.5,2.20527]
[1625482684514,5.19477,2300.6,2300.2,2.20527]
[1625482684614,50.4429,2300.3,2300.2,2.20527]
[1625482685419,52.64817,2300.3,2300.2,2.20527]
[1625482691129,52.64817,2300.3,2299.7,1.77687087]
[1625482691430,2.20527,2299.9,2299.7,3.98214087]
[1625482691631,2.20527,2299.9,2299.7,2.20527]
[1625482692436,5.24537,2299.9,2299.7,2.20527]
[1625482693340,5.24537,2299.9,2299.7,0.82827]
[1625482693437,2.20527,2299.8,2299.7,0.82827]
[1625482694594,2.20527,2299.8,2299.5,2.20527]
[1625482695456,2.20527,2299.6,2299.5,2.20527]
[1625482696458,2.20527,2299.6,2299.1,3.98388832]
[1625482696558,2.20527,2299.6,2299.1,1.77861832]
[1625482697210,2.20527,2299.6,2298.8,15.60904637]
[1625482697513,2.20527,2299.6,2299.3,2.20527]
[1625482697611,39.559,2299.4,2299.3,2.20527]
[1625482697712,42.5572,2299.4,2299.3,2.20527]
[1625482699484,44.76247,2299.4,2299.3,2.20527]
[1625482708460,42.5572,2299.4,2298.8,13.8294]
[1625482709515,2.20527,2299.2,2299.1,2.20527]
[1625482711118,1.0,2300.2,2299.1,2.20527]
[1625482711219,14.5011,2301.1,2299.1,5.27237]
[1625482711318,3.55790485,2301.0,2299.1,5.27237]
[1625482711524,2.20527,2300.1,2300.0,2.20527]
[1625482711721,38.73097,2300.1,2300.0,2.20527]
[1625482711824,41.78537,2300.1,2300.0,2.20527]
[1625482713524,43.99064,2300.1,2300.0,2.20527]
[1625482713637,43.99064,2300.1,2299.1,1.0]
[1625482713727,43.99064,2300.1,2298.8,13.8294]
[1625482715531,2.20527,2299.3,2299.2,2.20527]
[1625482715732,4.94137,2299.3,2299.2,2.20527]
[1625482717533,7.14664,2299.3,2299.2,2.20527]
[1625482719085,7.14664,2299.3,2299.0,2.20527]
[1625482724942,4.94137,2299.3,2299.0,2.20527]
[1625482725594,4.94137,2299.3,2299.2,2.20527]
[1625482728823,4.94137,2299.3,2299.0,2.20527]
[1625482729622,2.20527,2299.1,2299.0,2.20527]
[1625482731125,56.20917,2299.1,2299.0,2.20527]
[1625482736334,58.67197,2299.1,2299.0,2.20527]
[1625482737435,4.66807,2299.1,2299.0,2.20527]
[1625482737538,2.20527,2299.1,2299.0,2.20527]
[1625482737836,2.20527,2299.3,2299.0,2.20527]
[1625482739641,2.20527,2299.3,2299.0,4.41054]
[1625482743716,2.20527,2299.1,2299.0,4.41054]
[1625482747635,2.20527,2299.3,2299.0,4.41054]
[1625482748086,2.20527,2299.7,2299.0,4.41054]
[1625482748836,36.5257,2300.1,2299.0,4.41054]
[1625482749690,36.5257,2300.1,2300.0,2.20527]
[1625482749991,2.20527,2300.2,2300.0,2.20527]
[1625482750100,1.79311604,2301.0,2300.0,2.20527]
[1625482750293,1.79289859,2301.4,2300.0,2.20527]
[1625482750995,2.79266649,2301.7,2300.0,2.20527]
[1625482751094,1.79266649,2301.7,2300.0,2.20527]
[1625482751544,1.79266649,2301.7,2300.1,15.744822]
[1625482751746,2.20527,2301.2,2301.1,2.20527]
[1625482753751,4.41054,2301.2,2301.1,2.20527]
[1625482756653,7.62744,2301.2,2301.1,2.20527]
[1625482760880,7.62744,2301.2,2300.0,1.0]
[1625482760982,7.62744,2301.2,2299.8,62.4458077]
[1625482761689,7.62744,2301.2,2299.9,15.906011]
[1625482761889,5.42217,2301.2,2300.8,2.20527]
[1625482763842,2.20527,2300.9,2300.8,2.20527]
[1625482765907,5.37367,2300.9,2300.8,2.20527]
[1625482766203,5.37367,2300.9,2299.9,2.77785905]
[1625482766204,3.1684,2300.9,2299.9,2.77785905]
[1625482766303,3.1684,2300.9,2299.9,1.77785905]
[1625482766853,3.1684,2300.9,2300.0,15.744477]
[1625482767856,2.20527,2300.8,2300.7,2.20527]
[1625482768256,2.6459,2301.4,2300.7,2.20527]
[1625482768357,2.271,2302.0,2300.7,2.20527]
[1625482768458,2.56122022,2302.1,2300.7,2.20527]
[1625482768659,2.67256683,2302.2,2300.7,2.20527]
[1625482768758,1.79264483,2302.2,2300.7,2.20527]
[1625482769060,47.62721512,2302.3,2300.7,2.20527]
[1625482769460,1.79277365,2302.2,2300.7,2.20527]
[1625482769911,2.20527,2301.3,2301.2,2.20527]
[1625482770011,4.37417,2301.3,2301.2,2.20527]
[1625482771966,6.57944,2301.3,2301.2,2.20527]
[1625482785162,4.37417,2301.3,2301.2,2.20527]
[1625482786113,4.37417,2301.3,2301.2,4.41054]
[1625482791223,4.37417,2301.3,2300.5,52.1364]
[1625482791323,2.20527,2301.3,2300.9,3.5468]
[1625482791628,2.20527,2301.5,2300.9,3.5468]
[1625482792135,2.20527,2301.5,2301.4,2.20527]
[1625482792336,2.20527,2301.5,2301.4,4.54657]
[1625482801002,2.20527,2301.5,2301.4,2.3413]
[1625482801104,2.20527,2301.5,2300.5,0.8743]
[1625482801205,52.9382,2301.2,2300.3,3.4453]
[1625482801803,56.0513,2301.2,2300.4,15.673273]
[1625482802105,56.0513,2301.2,2299.8,14.8489]
[1625482802204,2.20527,2301.0,2300.8,2.20527]
[1625482804215,4.41054,2301.0,2300.8,2.20527]
[1625482810093,4.41054,2301.0,2299.9,1.0]
[1625482810192,4.41054,2301.0,2299.8,14.8489]
[1625482810292,2.20527,2300.3,2300.1,2.20527]
[1625482811698,53.9382,2301.2,2299.8,14.8489]
[1625482811796,3.5512,2301.1,2299.8,14.8489]
[1625482812069,8.5512,2301.1,2299.8,14.8489]
[1625482812248,4.41054,2299.9,2299.8,14.8489]
[1625482812347,7.37654,2299.9,2299.8,14.8489]
[1625482812448,56.70394,2299.9,2299.8,14.8489]
[1625482812547,56.70394,2299.9,2299.5,3.98500281]
[1625482812797,56.70394,2299.9,2299.5,2.20527]
[1625482814258,2.20527,2299.6,2299.5,2.20527]
[1625482818218,5.17077,2299.6,2299.5,2.20527]
[1625482822925,5.17077,2299.6,2299.2,2.20527]
[1625482824331,2.20527,2299.3,2299.2,2.20527]
[1625482826193,2.20527,2299.3,2298.6,16.08359015]
[1625482826393,2.20527,2298.8,2298.7,2.20527]
[1625482827546,2.20527,2298.8,2298.7,3.98849689]
[1625482827847,2.20527,2298.8,2298.7,2.20527]
[1625482829251,2.20527,2298.8,2298.7,3.98858195]
[1625482830961,2.20527,2298.8,2298.7,2.20527]
[1625482832664,2.20527,2298.8,2298.7,3.4792028]
[1625482834768,2.20527,2298.8,2298.7,2.20527]
[1625482836467,2.20527,2298.8,2298.7,3.4794742]
[1625482836468,4.41054,2298.8,2298.7,3.4794742]
[1625482837574,4.41054,2298.8,2298.7,2.20527]
[1625482838426,4.41054,2298.8,2298.7,3.47892811]
[1625482840632,4.41054,2298.8,2298.7,3.98756981]
[1625482840633,2.20527,2298.8,2298.7,3.98756981]
[1625482842246,2.20527,2298.8,2298.7,3.47807088]
[1625482844008,4.91217,2298.8,2298.7,3.47807088]
[1625482844708,4.91217,2298.8,2298.7,2.20527]
[1625482845707,4.91217,2298.8,2298.7,3.47802638]
[1625482846607,2.20527,2299.2,2298.7,6.06412638]
[1625482847107,2.20527,2299.2,2298.8,1.27220107]
[1625482848561,4.41054,2299.2,2298.8,1.27220107]
[1625482848962,4.41054,2299.2,2298.7,2.20527]
[1625482850513,4.41054,2299.2,2299.1,2.20527]
[1625482854322,4.41054,2299.2,2298.7,2.20527]
[1625482854521,2.20527,2298.8,2298.7,2.20527]
[1625482859680,2.20527,2299.2,2298.7,2.20527]
[1625482859880,2.20527,2299.2,2298.7,17.901222]
[1625482860084,2.20527,2299.2,2298.7,19.17333666]
[1625482860581,2.20527,2299.5,2299.1,2.20527]
[1625482861993,2.20527,2299.5,2299.1,3.47613487]
[1625482862547,2.20527,2299.5,2299.4,2.20527]
[1625482867520,4.80767,2299.5,2298.7,1.27140328]
[1625482867822,4.80767,2299.5,2298.5,1.27187769]
[1625482868171,45.7375,2299.3,2298.5,1.27187769]
[1625482868369,45.7375,2299.3,2298.6,1.27176679]
[1625482868669,2.20527,2299.0,2298.9,2.20527]
[1625482869770,2.20527,2299.0,2298.7,2.20527]
[1625482870675,2.20527,2298.8,2298.7,2.20527]
[1625482870873,2.20527,2299.0,2298.7,2.20527]
[1625482872678,4.41054,2299.0,2298.7,4.41054]
[1625482878545,45.7375,2299.3,2298.5,1.27170545]
[1625482879061,45.7375,2299.3,2298.4,1.83063675]
[1625482879062,2.20527,2299.0,2298.9,2.20527]
[1625482879510,5.23147,2299.0,2298.9,2.20527]
[1625482879910,5.23147,2299.0,2298.7,2.20527]
[1625482885072,2.20527,2298.9,2298.7,2.20527]
[1625482885977,2.20527,2298.9,2298.7,3.47862125]
[1625482886428,2.20527,2298.9,2298.7,2.20527]
[1625482893142,2.20527,2298.9,2298.7,3.48085794]
[1625482895662,2.20527,2298.9,2298.8,1.27656954]
[1625482896163,2.20527,2298.9,2298.7,3.4821034]
[1625482896618,2.20527,2298.9,2298.8,1.2768417]
[1625482897514,2.20527,2298.9,2298.8,1.40577928]
[1625482897615,2.20527,2298.9,2298.8,1.91836677]
[1625482898568,2.20527,2298.9,2298.8,0.12893758]
[1625482900069,2.20527,2298.9,2298.8,1.91833772]
[1625482901675,2.20527,2298.9,2298.8,2.68649034]
[1625482907488,5.54187,2298.9,2298.8,2.68649034]
[1625482909497,5.54187,2298.9,2298.8,0.12893758]
[1625482910047,5.54187,2298.9,2298.8,0.77359599]
[1625482910356,5.54187,2298.9,2298.8,4.09710741]
[1625482910659,2.20527,2298.9,2298.8,6.64790741]
[1625482910758,2.20527,2298.9,2298.8,3.32439599]
[1625482911064,2.20527,2298.9,2298.8,6.64747648]
[1625482911616,2.20527,2298.9,2298.8,3.32439599]
[1625482911714,2.20527,2298.9,2298.8,0.77359599]
[1625482912369,2.20527,2298.9,2298.8,4.09713817]
[1625482916879,4.98280086,2300.5,2298.8,4.09713817]
[1625482917082,5.98280086,2300.5,2298.8,4.09713817]
[1625482917180,47.49817196,2300.3,2299.3,4.70673406]
[1625482917281,2.20527,2299.6,2299.5,2.20527]
[1625482919283,4.41054,2299.6,2299.5,2.20527]
[1625482919639,4.41054,2299.6,2299.3,1.27884393]
[1625482922341,4.41054,2299.6,2299.4,1.27941332]
[1625482933185,4.41054,2299.6,2299.3,1.27869609]
[1625482933280,7.85444,2299.6,2299.3,1.27869609]
[1625482933932,7.85444,2299.6,2299.4,1.27860563]
[1625482940350,52.1163,2299.5,2299.4,1.27860563]
[1625482951381,55.208,2299.5,2299.4,1.27860563]
[1625482954739,55.208,2299.5,2299.4,1.79032504]
[1625482960967,55.208,2299.5,2299.4,1.27998702]
[1625482968541,55.208,2299.5,2299.3,1.27994314]
[1625482968640,55.208,2299.5,2299.2,1.7919204]
[1625482969295,55.208,2299.5,2299.1,1.79227409]
[1625482969401,55.208,2299.5,2299.1,0.14737409]
[1625482970005,2.20527,2299.2,2299.1,0.14737409]
[1625482970099,3.08067,2299.2,2299.1,0.14737409]
[1625482970454,3.08067,2299.2,2299.1,0.27630311]
[1625482970551,3.08067,2299.2,2299.1,2.68888501]
[1625482973410,3.08067,2299.2,2299.1,0.12892902]
[1625482973809,3.08067,2299.2,2299.1,2.68866501]
[1625482974624,3.08067,2299.2,2299.1,0.12892902]
[1625482974725,3.08067,2299.2,2299.0,2.55970321]
[1625482974924,3.08067,2299.2,2299.1,2.55952276]
[1625482975026,3.08067,2299.2,2299.1,2.68845294]
[1625482975424,3.08067,2299.2,2299.1,2.55952276]
[1625482975776,3.08067,2299.2,2299.1,2.68845308]
[1625482977278,3.08067,2299.2,2299.1,2.55952276]
[1625482977628,3.08067,2299.2,2299.1,2.68845333]
[1625482978077,3.08067,2299.2,2299.1,2.55952276]
[1625482979379,3.08067,2299.2,2299.0,2.55983994]
[1625482979481,5.70847,2299.2,2299.0,2.55983994]
[1625482980033,2.20527,2299.1,2299.0,2.55983994]
[1625482980585,2.20527,2299.1,2299.0,2.68877291]
[1625482988473,2.20527,2299.1,2299.0,0.12893297]
[1625482989024,2.20527,2299.1,2298.5,0.77360681]
[1625482989124,2.20527,2299.1,2299.0,2.56000095]
[1625482989724,2.20527,2299.1,2299.0,2.68893561]
[1625482990127,2.20527,2299.1,2299.0,2.56000095]
[1625482993989,2.20527,2299.1,2298.9,2.56324748]
[1625483001159,2.20527,2299.1,2298.8,2.56074915]
[1625483002109,2.20527,2298.9,2298.8,2.56074915]
[1625483002459,2.20527,2298.9,2298.7,2.56112513]
[1625483005012,5.51007,2298.9,2298.7,2.56112513]
[1625483005362,5.51007,2298.9,2298.6,2.56119651]
[1625483006213,54.82687,2298.7,2298.4,3.32912309]
[1625483006568,54.82687,2298.7,2298.5,0.12895004]
[1625483007317,55.70597,2298.7,2298.5,0.12895004]
[1625483007519,55.70597,2298.7,2298.6,2.56076591]
[1625483012294,55.70597,2298.7,2298.5,2.56102071]
[1625483017114,3.08437,2298.7,2298.5,2.56102071]
[1625483017215,2.20527,2298.7,2298.5,2.56102071]
[1625483017617,2.20527,2298.7,2298.5,46.32212071]
[1625483017714,2.20527,2298.7,2298.6,2.55956891]
[1625483018316,3.08597,2298.7,2298.6,2.55956891]
[1625483018416,3.08597,2298.7,2298.5,2.5597896]
[1625483018818,47.3569,2298.6,2298.5,2.5597896]
[1625483019017,47.3569,2298.6,2298.5,3.4232896]
[1625483019118,47.3569,2298.6,2298.5,2.5597896]
[1625483020882,47.3569,2298.6,2298.1,2.56105956]
[1625483021132,47.3569,2298.6,2297.9,5.53464743]
[1625483021332,47.3569,2298.6,2298.2,2.56065308]
[1625483022237,2.20527,2298.3,2298.2,2.56065308]
[1625483022336,2.20527,2298.3,2298.1,2.5610688]
[1625483024242,2.20527,2298.2,2298.1,2.5610688]
[1625483024593,2.20527,2298.2,2298.0,2.56038062]
[1625483025819,2.20527,2298.2,2298.1,2.56008544]
[1625483028850,2.20527,2298.2,2298.0,3.32627347]
[1625483028952,2.20527,2298.2,2298.1,0.12896081]
[1625483029399,2.20527,2298.2,2298.0,3.32627347]
[1625483029600,2.20527,2298.2,2297.9,49.03584]
[1625483029601,2.20527,2298.2,2298.1,2.55966427]
[1625483031003,2.20527,2298.2,2297.9,52.36340355]
[1625483031453,2.20527,2298.2,2298.1,2.56374139]
[1625483043028,2.20527,2298.3,2298.1,5.80414139]
[1625483043141,2.20527,2298.3,2298.1,5.93310667]
[1625483043447,2.20527,2298.3,2298.2,0.12895543]
[1625483043847,2.20527,2298.3,2298.1,2.56374139]
[1625483043947,2.20527,2298.3,2298.2,2.5607779]
[1625483044252,2.20527,2298.3,2298.2,2.68973901]
[1625483044349,2.20527,2298.3,2298.2,4.89500901]
[1625483044449,2.20527,2298.3,2298.2,2.33423111]
[1625483045403,2.20527,2298.3,2298.2,2.20527]
[1625483045603,46.38297,2298.3,2298.2,2.20527]
[1625483046408,48.58824,2298.3,2298.2,2.20527]
[1625483049618,51.44314,2298.3,2298.2,2.20527]
[1625483052279,51.44314,2298.3,2297.9,2.20527]
[1625483052379,51.44314,2298.3,2297.8,2.56400701]
[1625483052480,2.20527,2298.0,2297.8,2.56400701]
[1625483052737,2.20527,2298.0,2297.6,2.56479738]
[1625483053578,3.06697,2298.0,2297.6,2.56479738]
[1625483053731,3.06697,2298.0,2297.5,2.56507638]
[1625483054381,3.06697,2298.0,2297.2,2.5673796]
[1625483054480,5.50637,2297.6,2297.2,2.5673796]
[1625483054881,5.50637,2297.6,2297.0,4.7718877]
[1625483055681,5.50637,2297.6,2297.1,2.56641591]
[1625483056483,2.20527,2297.2,2297.0,4.77077521]
[1625483057087,2.20527,2297.2,2297.0,2.20527]
[1625483058502,4.41054,2297.2,2297.0,2.20527]
[1625483060356,4.41054,2297.2,2296.6,2.56463358]
[1625483060455,4.41054,2296.7,2296.6,2.56463358]
[1625483060758,4.41054,2296.7,2296.5,2.20527]
[1625483061207,4.41054,2296.7,2296.5,4.77095467]
[1625483063009,4.41054,2296.7,2296.5,2.20527]
[1625483063460,4.41054,2296.7,2296.5,4.76851969]
[1625483064513,4.41054,2296.7,2296.6,2.20527]
[1625483065416,4.41054,2296.7,2296.6,4.76652681]
[1625483065965,2.20527,2296.7,2296.6,4.76652681]
[1625483066767,2.20527,2297.1,2296.6,4.76652681]
[1625483067116,2.20527,2297.1,2296.7,2.55051003]
[1625483067215,2.20527,2297.1,2296.7,18.48044703]
[1625483067669,2.20527,2297.1,2296.8,2.55028637]
[1625483068018,2.20527,2297.1,2296.9,15.700283]
[1625483068568,2.20527,2297.1,2297.0,2.20527]
[1625483075990,53.1126,2297.5,2296.7,2.55158584]
[1625483076591,53.1126,2297.5,2297.3,2.20527]
[1625483076691,2.20527,2297.4,2297.3,2.20527]
[1625483078649,4.41054,2297.4,2297.3,2.20527]
[1625483096591,2.20527,2297.4,2297.3,2.20527]
[1625483096691,2.20527,2297.4,2297.3,4.69347]
[1625483102062,2.20527,2297.8,2297.3,4.69347]
[1625483102162,2.20527,2297.8,2297.3,20.495404]
[1625483102362,1.0,2298.9,2297.3,20.495404]
[1625483102466,2.56509693,2299.0,2297.3,20.495404]
[1625483102813,4.77036693,2299.0,2298.9,2.20527]
[1625483103214,45.06377,2299.0,2298.9,2.20527]
[1625483103313,45.06377,2299.0,2298.0,1.0]
[1625483103464,47.90967,2299.0,2297.8,2.54099729]
[1625483103568,47.90967,2299.0,2297.4,2.5430318]
[1625483103968,52.90967,2299.0,2297.4,2.5430318]
[1625483104372,52.90967,2299.0,2297.3,2.54398567]
[1625483104474,47.90967,2299.0,2297.3,2.54398567]
[1625483104575,48.4717,2297.8,2297.3,2.54398567]